Cogmind - Beta 12 *** ADVENTURER MODE // 2023.05.03 @ 14:59:43 Player: NED1124 Result: Destroyed by as-46963 with Assembled Rifle Performance ------------- Evolutions (0) 0 Regions Visited (2) 400 Robots Destroyed (7) 35 Value Destroyed (192) 192 Prototype IDs (0) 0 Alien Tech Used (0) 0 Bonus (0) 0 TOTAL SCORE: 627 Bonus ------- None Cogmind --------- Core Integrity 0/250 Matter 300/300 Energy 123/125 System Corruption 1% Temperature Cool (1) Movement Walking (120) Location -10/Mines Parts ------- > --- POWER (1) -------- Light Ion Engine > --- PROPULSION (2) --- Aluminum Leg > --- UTILITY (2) ------ Small Storage Unit Tractor Beam > --- WEAPON (2) ------- Small Laser > --- INVENTORY (8) ---- Ion Engine Heat Sink Huge Storage Unit Peak State ------------ > --- POWER ------------ Light Nuclear Core > --- PROPULSION ------- Aluminum Leg Aluminum Leg > --- UTILITY ---------- Improved Heat Sink Small Storage Unit > --- WEAPON ----------- Light Assault Rifle Light Assault Rifle > --- INVENTORY -------- Ion Engine Ion Engine Light Ion Engine Aluminum Leg Aluminum Leg Heat Sink Huge Storage Unit Light Assault Rifle [Rating: 11] Favorites ----------- Power Ion Engine Engine Ion Engine Power Core Light Nuclear Core Propulsion Aluminum Leg Leg Aluminum Leg Utility Small Storage Unit Device Tractor Beam Storage Small Storage Unit Weapon Light Assault Rifle Energy Gun Small Laser Ballistic Gun Light Assault Rifle Build | -11 -10 -10 ------- Run | Jun Mat Min Slots Evolved . | . . . Power . | . . . Propulsion . | . . . Utility . | . . . Weapon . | . . . Parts Attached 19 | 6 1 12 Power 5 | 1 . 4 Engine 4 | 1 . 3 Core 1 | . . 1 Reactor . | . . . Propulsion 4 | 2 . 2 Treads . | . . . Leg 4 | 2 . 2 Wheel . | . . . Hover . | . . . Flight . | . . . Utility 6 | 1 1 4 Device 4 | . 1 3 Storage 2 | 1 . 1 Processor . | . . . Hackware . | . . . Protection . | . . . Artifact . | . . . Weapon 4 | 2 . 2 Energy Gun 1 | . . 1 Energy Cannon . | . . . Ballistic Gun 3 | 2 . 1 Ballistic Cannon . | . . . Launcher . | . . . Special Weapon . | . . . Impact Weapon . | . . . Slashing Weapon . | . . . Piercing Weapon . | . . . Special Melee Weapon . | . . . Unidentified Prototypes . | . . . Parts Lost 5 | . . 5 Power 1 | . . 1 Propulsion 1 | . . 1 Utility 1 | . . 1 Weapon 2 | . . 2 Highest Loss Streak 3 | . . 3 To Critical Strikes . | . . . Average Slot Usage (%) 80 | . 97 71 Engine 11 | . 14 10 Core 1 | . . 2 Leg 20 | . 28 16 Device 10 | . 11 10 Storage 13 | . 14 12 Energy Gun 4 | . . 7 Ballistic Gun 17 | . 28 11 Naked Turns 29 | . . 29 Heaviest Build 13 | 12 13 13 Greatest Support 20 | 20 20 20 Greatest Overweight (x) 3 | 1 . 3 Average Overweight (x) . | . . . Largest Inventory Capacity 8 | 8 8 8 Average Capacity 7 | 7 8 7 Most Carried 8 | 1 3 8 Average Carried 3 | . 2 4 Final Capacity 8 | 8 8 8 Final Carried 3 | 1 3 3 Class Distribution -------------------- 72% | Mutant 27% | Scavenger-Mutant Dominant Class ---------------- Mutant | -10/Materials Mutant | -10/Mines Resources | -11 -10 -10 ----------- Run | Jun Mat Min Matter Collected 407 | 182 46 179 Remotely 60 | . . 60 Salvage Created 269 | . 46 223 Parts 15 | . 6 9 Haulers Intercepted . | . . . Recyclers Shooed 2 | . 1 1 Parts Field Recycled . | . . . Retrieved Matter . | . . . Parts Self-Destructed . | . . . Prevented . | . . . Kills | -11 -10 -10 ------- Run | Jun Mat Min Combat Hostiles Destroyed 11 | . 3 8 Guns 11 | . 3 8 Classes Destroyed 3 | . 1 2 Swarmer 3 | . 3 . Grunt 4 | . . 4 Assembled 4 | . . 4 Best Kill Streak 3 | . 3 2 Combat Bots Only 3 | . 3 2 Max Kills in Single Turn 1 | . 1 1 Gunslinging . | . . . Exploded . | . . . Melee . | . . . Uniques/NPCs Destroyed . | . . . Combat | -11 -10 -10 -------- Run | Jun Mat Min Damage Taken 883 | . 133 750 Core 259 | . 13 246 Absorbed by Shields . | . . . Core Remaining (%) 100 | 100 . . Volleys Fired 42 | . 11 31 Largest 2 | . 2 2 Hottest 40 | . 40 40 Shots Fired 70 | . 22 48 Gun 70 | . 22 48 Cannon . | . . . Launcher . | . . . Special . | . . . Kinetic 63 | . 22 41 Thermal 7 | . . 7 Explosive . | . . . Electromagnetic . | . . . Robot Hit Streak 19 | . 6 19 Robot Miss Streak 3 | . 3 1 Penetration Max . | . . . Secondary Targets 2 | . 1 1 Max Gunslinging Chain 1 | . 1 1 Shots Hit Robots 55 | . 14 41 Core Hits 22 | . 4 18 Critical Kills . | . . . Critical Parts Destroyed . | . . . Critical Strikes . | . . . Melee Attacks . | . . . Impact . | . . . Slashing . | . . . Piercing . | . . . Sneak Attacks . | . . . Combat Hostiles . | . . . Follow-up Attacks . | . . . Damage Inflicted 473 | . 90 383 Guns 445 | . 84 361 Cannons . | . . . Explosions . | . . . Melee . | . . . Ramming 28 | . 6 22 Kinetic 376 | . 84 292 Thermal 69 | . . 69 Explosive . | . . . Electromagnetic . | . . . Impact . | . . . Slashing . | . . . Piercing . | . . . Highest Corruption 1 | . . 1 Average Corruption 1 | . . 1 Corruption Purged . | . . . Corruption Blocked . | . . . Overload Shots . | . . . Overflow Damage . | . . . Projectiles . | . . . Explosions . | . . . Melee . | . . . Knockbacks 2 | . 1 1 Impact 2 | . 1 1 Kinetic . | . . . Secondary . | . . . Self-Inflicted Damage 10 | . . 10 Shots . | . . . Rammed 6 | . . 6 Targets Rammed 9 | . 2 7 Kicked 3 | . 2 1 Crushed . | . . . Highest Temperature 60 | . . 60 Average Temperature 20 | . . 20 Received Heat Transfer 349 | . . 349 Siege Activations . | . . . Robots Corrupted . | . . . Combat Hostiles . | . . . Parts Fried . | . . . Impact Corruptions . | . . . Robots Melted . | . . . Combat Hostiles . | . . . Parts Melted . | . . . Heat Transferred 150 | . . 150 Parts Sabotaged . | . . . Parts Stolen . | . . . Parts Stripped . | . . . Power Chain Reactions . | . . . Missiles Intercepted . | . . . Alert | -11 -10 -10 ------- Run | Jun Mat Min Peak Influence 138 | . 100 138 Initial 33 | . . 33 Average 65 | . 54 84 Maximum Alert Level . | . . . Low Security (%) 100 | 100 100 100 Level 1 . | . . . Level 2 . | . . . Level 3 . | . . . Level 4 . | . . . Level 5 . | . . . High Security . | . . . Max Security . | . . . Squads Dispatched . | . . . Investigation . | . . . Extermination . | . . . Reinforcement . | . . . Assault . | . . . Garrison . | . . . Intercept . | . . . Searches Triggered . | . . . Construction Impeded . | . . . Haulers Reinforced . | . . . Active Scanning Responses . | . . . Cargo Convoy Interrupts . | . . . Stealth | -11 -10 -10 --------- Run | Jun Mat Min Distress Signals 1 | . 1 . Communications Jammed . | . . . Distress Signals . | . . . Times Spotted 22 | . 7 15 Peak Tracking Total 7 | . 4 7 Tactical Retreats 5 | . 1 4 Traps | -11 -10 -10 ------- Run | Jun Mat Min Traps Triggered . | . . . Indirectly . | . . . Trap Hack Attempts . | . . . Triggered . | . . . Disarmed . | . . . Reprogrammed . | . . . Reused . | . . . Traps Extracted . | . . . Installed . | . . . Triggered . | . . . Machines | -11 -10 -10 ---------- Run | Jun Mat Min Machines Disabled . | . . . Max in Single Turn . | . . . Machines Repaired . | . . . Machines Sabotaged . | . . . Overloaded Fab Kills . | . . . Hacking | -11 -10 -10 --------- Run | Jun Mat Min Machines Accessed 1 | . 1 . Terminals 1 | . 1 . Fabricators . | . . . Repair Stations . | . . . Recycling Units . | . . . Scanalyzers . | . . . Garrison Access . | . . . Total Hacks 1 | . 1 . Successful . | . . . Failed 1 | . 1 . Catastrophic 1 | . 1 . Database Lockouts . | . . . Manual 1 | . 1 . Terminals 1 | . 1 . Fabricators . | . . . Repair Stations . | . . . Recycling Units . | . . . Scanalyzers . | . . . Garrison Access . | . . . Terminal Hacks . | . . . Fabricator Hacks . | . . . Repair Station Hacks . | . . . Recycling Unit Hacks . | . . . Scanalyzer . | . . . Garrison Access Hacks . | . . . Unauthorized Hacks . | . . . Terminals . | . . . Fabricators . | . . . Repair Stations . | . . . Recycling Units . | . . . Scanalyzers . | . . . Garrison Access . | . . . Data Cores Recovered . | . . . Used . | . . . Hacking Detections . | . . . Full Trace Events . | . . . Feedback Events . | . . . Feedback Blocked . | . . . Robot Schematics Acquired . | . . . Robots Built . | . . . Authchips . | . . . Time . | . . . Total Robot Build Rating . | . . . Part Schematics Acquired . | . . . Parts Built . | . . . Authchips . | . . . Time . | . . . Total Part Build Rating . | . . . Parts Repaired . | . . . Time . | . . . Parts Recycled . | . . . Recycled Matter . | . . . Retrieved Matter . | . . . Retrieved Components . | . . . Parts Scanalyzed . | . . . Part Schematics Acquired . | . . . Parts Damaged . | . . . Bothacking | -11 -10 -10 ------------ Run | Jun Mat Min Used RIF Installer . | . . . Robots Hacked . | . . . Non-combat . | . . . Combat . | . . . Robot Hacks Applied . | . . . Relay Couplers Released . | . . . Fabnet Peak Effective % . | . . . Robots Rewired . | . . . Allies Hacked . | . . . Hacks Repelled . | . . . Allies | -11 -10 -10 -------- Run | Jun Mat Min Total Allies . | . . . Largest Group . | . . . Highest-Rated Group . | . . . Highest-Rated Ally . | . . . Total Orders . | . . . Ally Attacks . | . . . Total Damage . | . . . Kills . | . . . Allies Corrupted . | . . . Allies Melted . | . . . Intel | -11 -10 -10 ------- Run | Jun Mat Min Robot Analysis Total . | . . . Derelict Logs Recovered . | . . . Drone Launches . | . . . Drone Recoveries . | . . . Exploration | -11 -10 -10 ------------- Run | Jun Mat Min Turns Passed 822 | 92 249 481 Spaces Moved 576 | 73 179 324 Core 101 | 8 . 93 Treads . | . . . Legs 475 | 65 179 231 Wheels . | . . . Hover . | . . . Flight . | . . . Fastest Speed 50 | 50 120 50 Average Speed 118 | 113 120 119 Slowest Speed 200 | 120 120 200 Overloaded Moves . | . . . Propulsion Burnouts . | . . . Robots Hopped . | . . . Cave-ins Triggered . | . . . Exploration Rate (%) 25 | 4 30 41 Regions Visited 2 Branch Regions 1 Pre-discovered Areas . | . . . Known Exits Taken . | . . . Unknown Exits Taken 2 | 1 1 . Scrap Searched . | . . . Spaces Dug . | . . . Terrain Destroyed . | . . . Melee . | . . . Projectile . | . . . AOE . | . . . Terrain Rammed . | . . . Walls Destroyed . | . . . Machines Disabled . | . . . Actions | -11 -10 -10 --------- Run | Jun Mat Min Total 649 | 79 194 376 Wait . | . . . Move 574 | 72 178 324 Hop . | . . . Pick Up 5 | 1 2 2 Fast Attach 12 | 6 1 5 Attach 4 | . . 4 Detach . | . . . Swap 3 | . . 3 Drop . | . . . Fire 42 | . 11 31 Melee . | . . . Ram 6 | . . 6 Kick 3 | . 2 1 Crush . | . . . Escape Stasis . | . . . Rewire . | . . . Trap . | . . . Miscellaneous . | . . . Route ------- -11/Junkyard -10/Materials -10/Mines History --------- Turn | Location | Event 2 | -11/Junkyard | Met Revision 17 21 | -11/Junkyard | Discovered new exit (range 16) 93 | -11/Junkyard | Entered Materials 282 | -10/Materials | Discovered new exit (range 12) 308 | -10/Materials | Build established: Mutant 342 | -10/Materials | Entered Mines 387 | -10/Mines | Met a Derelict bent on vengeance 503 | -10/Mines | Assembled infested the area 508 | -10/Mines | Assisted by a Guerilla fighting off Assembled 552 | -10/Mines | Core integrity fell below 50% 554 | -10/Mines | Released all parts (6) 577 | -10/Mines | Lost 3 parts (1n2w) 671 | -10/Mines | Core integrity fell below 20% 823 | -10/Mines | Destroyed by as-46963 with Assembled Rifle Last Messages --------------- 00559_ Slammed into R-06 Scavenger. 00565_ R-06 Scavenger knocked back. 00567_ Slammed into R-06 Scavenger. 00568_ Acquired 6 matter. 00574_ Slammed into R-06 Scavenger. 00574_ Destabilizing: System corrupted (+1). 00581_ R-06 Scavenger destroyed. 00583_ Acquired Lgt. Ion Engine. 00585_ Acquired Sml. Laser. 00587_ Acquired Tractor Beam. 00588_ Acquired 30 matter. 00596_ as-13911 destroyed. 00601_ Acquired Sml. Storage Unit. 00602_ Acquired 10 matter. 00671_ Lgt. Ion Engine destroyed. 00676_ as-63894 destroyed. 00690_ Acquired 1 matter. 00690_ Acquired 9 matter. 00691_ Acquired 10 matter. 00696_ Kicked R-06 Scavenger. Map ----- +----------------------------------------------------+ | | | ?????????????????????????????????????????????????? | | ?????????????????????????????????????????????????? | | ?????????????????????????????????????????????????? | | ?????????????????????????????????????????????????? | | ?????????????????????????????????????????????????? | | ?????????????????????????????????????#####???????? | | ????????????????????????????????????## ##??????? | | ??????????????????????????????####### #####??? | | ?????????????????????????????## ## #??? | | ?????????????????????????????# #### #??? | | ?????????????????????????????# $ ##?# #### | | ?????????????????????????????# ### | | ??????????#####?###?#######??## ##### # | | ?????????? ? ? #???##### #???# # | | ??????????? """ """ """ #???????# ##???# # | | ???????????# """ """ """ #??????## ##????# # | | ???????????# """ """ """ #??????# ##?????# # | | ???????????# #??????# #??????# # | | ??######???# """ """ """ #??????## ##??????# # | | ?########??# """ """ """ ####????#### ######### # | | #### ###??# """ """ """ #????##?# # | | ### ###?# ## #???# #?# ########### | | ## % ###?# """ """ """ ## #?## #??#%##????????? | | ## ##?#% """ """ """ ## ###;#####%=#####????? | | ## ##?#[%""" """ """@ % %=%% %%%%%#????? | | ### ###?#=! %%a % %!## #????? | | ?### ##### """ """ """ #####;### * ##???????? | | ??### % """ """ """ #???## # % ###????????? | | ??### ##### """ """ """ #????#### ##??????????? | | ???## ##### #??????## #???????????? | | ???## #?################??????# #???????????? | | ???### %#???????????????????????# #???????????? | | ???##### #???????????????????????# ##???????????? | | ?????### ##??????????????????????# ?????????????? | | ???????# ##??????????????????????# ?????????????? | | ???????# ##??????????????????????# ?????????????? | | ???????# ##?????????????????????? ?????????????? | | ???????# #???????????????????????###?????????????? | | ???????# #???????????????????????????????????????? | | ???????# #???????????????????????????????????????? | | ???????# #???????????????????????????????????????? | | ???????# ####????????????????????????????????????? | | ???????# #????????????????????????????????????? | | ???????# #????????????????????????????????????? | | ???????### #????????????????????????????????????? | | ?????????# #????????????????????????????????????? | | ?????????# #????????????????????????????????????? | | ?????????# *#????????????????????????????????????? | | ?????????#=*#????????????????????????????????????? | +----------------------------------------------------+ Best States ------------- Heat Dissipation 39 Energy Generation 14 Energy Capacity 250 Matter Stores 300 Matter Capacity 300 Sight Range 16 Terrain Scan Density 10 Resistance: KI 20 Resistance: TH 20 Resistance: EX 20 Resistance: EM 20 Resistance: I 20 Resistance: S 20 Resistance: P 20 Evasion (%) 55 Offensive Hacking 10 Item Schematics ----------------- None Robot Schematics ------------------ None Fabricated ------------ Nothing Alien Tech Used ----------------- None Achievements -------------- None Challenges ------------ None Game ------ Seed MasterLatentEngine Manual? 0 Play Time 00:10:19 Cumulative 34.3 hours Start 2023.05.03 @ 14:48:44 End 2023.05.03 @ 14:59:43 Sessions 1 Manual Loads 0 Difficulty Adventurer Special Mode None Game No. 64 Rogue 0 Adventurer 3 Explorer 61 Win Type - Total 0 Types 0/0/0/0/0/0/0/0/0 Lore% 7 Gallery% 28 Achievement% 23 Wizard Run 0 Options --------- ASCII 0 Keyboard 1 Movement Arrows Keybinds 0 Fullscreen 1 Font 18/SmallcapsGlow Map View 76x50 Tactical HUD 1 Map Filters NONE Filters NONE Steam 1 RUN: 65cb7090-cc23-4e6b-b103-4299b5bd1300